[Event "Early-Titled-Tuesday-Blitz-October-24-2023"]
[Site "Chess.com"]
[Date "2023.10.24"]
[Round "6"]
[White "Keeper0416"]
[Black "hansen"]
[Result "0-1"]
[WhiteElo "2582"]
[BlackElo "2933"]
[TimeControl "180+1"]
[EndTime "9:05:27 PDT"]
[Termination "hansen won by resignation"]

1. d4 {[%clk 0:02:51.6]} 1... Nf6 {[%clk 0:03:00.2]} 2. c4 {[%clk 0:02:51.6]}
2... e6 {[%clk 0:02:57.8]} 3. g3 {[%clk 0:02:50.5]} 3... Bb4+ {[%clk 0:02:57.4]}
4. Bd2 {[%clk 0:02:43.3]} 4... Be7 {[%clk 0:02:57.6]} 5. Bg2 {[%clk 0:02:42.4]}
5... d5 {[%clk 0:02:58]} 6. Qc2 {[%clk 0:02:41.7]} 6... O-O {[%clk 0:02:57.1]}
7. Nf3 {[%clk 0:02:42]} 7... Nbd7 {[%clk 0:02:57.5]} 8. Bf4 {[%clk 0:02:40.4]}
8... c6 {[%clk 0:02:57.1]} 9. h4 {[%clk 0:02:40.6]} 9... b6 {[%clk 0:02:53.9]}
10. Nc3 {[%clk 0:02:35.1]} 10... Ba6 {[%clk 0:02:47.3]} 11. e4 {[%clk
0:02:02.5]} 11... dxc4 {[%clk 0:02:22.1]} 12. e5 {[%clk 0:02:01.7]} 12... Nd5
{[%clk 0:02:20.4]} 13. Ng5 {[%clk 0:02:02.3]} 13... g6 {[%clk 0:02:20.8]} 14.
Nce4 {[%clk 0:01:53.6]} 14... Nb4 {[%clk 0:02:18]} 15. Qa4 {[%clk 0:01:14.9]}
15... Nd3+ {[%clk 0:02:16.5]} 16. Kf1 {[%clk 0:01:11.7]} 16... Bb5 {[%clk
0:02:02.6]} 17. Qc2 {[%clk 0:01:06.8]} 17... c3 {[%clk 0:01:51.7]} 18. Kg1
{[%clk 0:01:06.5]} 18... cxb2 {[%clk 0:01:47.3]} 19. Rd1 {[%clk 0:01:03.4]}
19... c5 {[%clk 0:00:25.3]} 20. Rxd3 {[%clk 0:00:53.6]} 20... Bxd3 {[%clk
0:00:21.4]} 21. Qxd3 {[%clk 0:00:54.5]} 21... cxd4 {[%clk 0:00:21.4]} 22. Kh2
{[%clk 0:00:45.2]} 22... Rc8 {[%clk 0:00:15.3]} 23. Rb1 {[%clk 0:00:40.4]} 23...
Nc5 {[%clk 0:00:15.7]} 24. Nxc5 {[%clk 0:00:39.4]} 24... bxc5 {[%clk 0:00:15.7]}
25. Rxb2 {[%clk 0:00:39.9]} 25... c4 {[%clk 0:00:16.3]} 26. Qe4 {[%clk
0:00:19.6]} 26... c3 {[%clk 0:00:16.4]} 27. Rb1 {[%clk 0:00:16.6]} 27... c2
{[%clk 0:00:13.6]} 28. Rc1 {[%clk 0:00:16.6]} 28... d3 {[%clk 0:00:14.1]} 29.
Bd2 {[%clk 0:00:17.1]} 29... Bxg5 {[%clk 0:00:10.1]} 30. hxg5 {[%clk 0:00:14.8]}
30... Qd7 {[%clk 0:00:06.3]} 31. Bf3 {[%clk 0:00:14.6]} 31... Rfd8 {[%clk
0:00:05.9]} 32. Kg2 {[%clk 0:00:15.1]} 32... Qe7 {[%clk 0:00:05.7]} 33. Rh1
{[%clk 0:00:14.3]} 33... h5 {[%clk 0:00:05.8]} 34. gxh6 {[%clk 0:00:14.5]} 34...
Kh7 {[%clk 0:00:06.5]} 35. Rc1 {[%clk 0:00:14.2]} 35... Rd7 {[%clk 0:00:05.4]}
36. Qf4 {[%clk 0:00:14.7]} 36... Qa3 {[%clk 0:00:04.6]} 37. Be4 {[%clk
0:00:14.6]} 37... Qe7 {[%clk 0:00:04]} 38. Rh1 {[%clk 0:00:13.9]} 38... Rcd8
{[%clk 0:00:03.7]} 39. Rc1 {[%clk 0:00:13.6]} 39... Rc8 {[%clk 0:00:04.2]} 40.
Qe3 {[%clk 0:00:12.9]} 40... Qc5 {[%clk 0:00:04.1]} 41. Qf4 {[%clk 0:00:11.7]}
41... Qd4 {[%clk 0:00:04.6]} 42. Bf3 {[%clk 0:00:08]} 42... Qxf4 {[%clk
0:00:04.2]} 43. gxf4 {[%clk 0:00:08.9]} 43... Rb8 {[%clk 0:00:04.1]} 44. Be4
{[%clk 0:00:08.4]} 44... Rb1 {[%clk 0:00:04.3]} 45. Kf3 {[%clk 0:00:07.5]} 45...
Rxc1 {[%clk 0:00:04.5]} 46. Bxc1 {[%clk 0:00:08.4]} 46... d2 {[%clk 0:00:05.2]}
47. Bxd2 {[%clk 0:00:05.1]} 47... Rxd2 {[%clk 0:00:05.9]} 0-1

[Event "Early-Titled-Tuesday-Blitz-October-24-2023"]
[Site "Chess.com"]
[Date "2023.10.24"]
[Round "6"]
[White "Actuary44"]
[Black "KorolDimitriy75"]
[Result "0-1"]
[WhiteElo "2489"]
[BlackElo "2347"]
[TimeControl "180+1"]
[EndTime "9:05:27 PDT"]
[Termination "KorolDimitriy75 won on time"]

1. e4 {[%clk 0:03:00.9]} 1... c5 {[%clk 0:03:00.2]} 2. d4 {[%clk 0:03:01.1]}
2... cxd4 {[%clk 0:02:59.9]} 3. c3 {[%clk 0:03:01.7]} 3... d5 {[%clk 0:02:58.7]}
4. exd5 {[%clk 0:03:01.6]} 4... Qxd5 {[%clk 0:02:58.8]} 5. cxd4 {[%clk
0:03:02.5]} 5... Nc6 {[%clk 0:02:58.9]} 6. Nf3 {[%clk 0:03:02.8]} 6... e5 {[%clk
0:02:59.1]} 7. Nc3 {[%clk 0:02:54.3]} 7... Bb4 {[%clk 0:02:58.7]} 8. Be2 {[%clk
0:02:52.1]} 8... exd4 {[%clk 0:02:54.9]} 9. O-O {[%clk 0:02:51.5]} 9... Qd8
{[%clk 0:02:54.9]} 10. Nb5 {[%clk 0:02:47.3]} 10... Nge7 {[%clk 0:02:52.3]} 11.
Bf4 {[%clk 0:02:30.5]} 11... O-O {[%clk 0:02:44.3]} 12. Nbxd4 {[%clk 0:02:30.1]}
12... Qb6 {[%clk 0:02:36]} 13. a3 {[%clk 0:02:13.6]} 13... Nxd4 {[%clk
0:02:07.5]} 14. Nxd4 {[%clk 0:01:53.9]} 14... Bc5 {[%clk 0:01:56.5]} 15. Nb3
{[%clk 0:01:38.1]} 15... Ng6 {[%clk 0:01:17.8]} 16. Bg3 {[%clk 0:01:23.5]} 16...
Rd8 {[%clk 0:01:11]} 17. Qc2 {[%clk 0:01:22.8]} 17... Bd6 {[%clk 0:00:53.3]} 18.
Rac1 {[%clk 0:01:13.9]} 18... Be6 {[%clk 0:00:39.1]} 19. Nd2 {[%clk 0:01:00.5]}
19... Rac8 {[%clk 0:00:30.3]} 20. Bc4 {[%clk 0:00:43.2]} 20... Bxg3 {[%clk
0:00:17.1]} 21. hxg3 {[%clk 0:00:44.1]} 21... Ne5 {[%clk 0:00:13]} 22. b3 {[%clk
0:00:29.5]} 22... Nxc4 {[%clk 0:00:09.9]} 23. Nxc4 {[%clk 0:00:22]} 23... Qa6
{[%clk 0:00:09.3]} 24. Qb2 {[%clk 0:00:18.3]} 24... Bxc4 {[%clk 0:00:07.9]} 25.
bxc4 {[%clk 0:00:19.2]} 25... b6 {[%clk 0:00:07.8]} 26. Qb4 {[%clk 0:00:17.9]}
26... h6 {[%clk 0:00:07.1]} 27. Rfe1 {[%clk 0:00:17.6]} 27... Qb7 {[%clk
0:00:04.9]} 28. Re7 {[%clk 0:00:17.1]} 28... Rc7 {[%clk 0:00:04.9]} 29. Rce1
{[%clk 0:00:16]} 29... Rdc8 {[%clk 0:00:02.3]} 30. Re8+ {[%clk 0:00:14.4]} 30...
Kh7 {[%clk 0:00:01.9]} 31. Qb1+ {[%clk 0:00:14.3]} 31... g6 {[%clk 0:00:01.6]}
32. Rxc8 {[%clk 0:00:09.6]} 32... Qxc8 {[%clk 0:00:01.3]} 33. Qd3 {[%clk
0:00:07.3]} 33... Rxc4 {[%clk 0:00:01.3]} 34. Re7 {[%clk 0:00:06.1]} 34... Rc7
{[%clk 0:00:01.7]} 35. Qd6 {[%clk 0:00:05.1]} 35... Rxe7 {[%clk 0:00:01.8]} 36.
Qxe7 {[%clk 0:00:06]} 36... Qe6 {[%clk 0:00:02.2]} 37. Qxa7 {[%clk 0:00:05.1]}
37... Kg7 {[%clk 0:00:02.7]} 38. Kf1 {[%clk 0:00:04.6]} 38... Qc4+ {[%clk
0:00:02.6]} 39. Ke1 {[%clk 0:00:04.2]} 39... Qc5 {[%clk 0:00:03.5]} 40. Qa4
{[%clk 0:00:03.5]} 40... Qc3+ {[%clk 0:00:03.2]} 41. Ke2 {[%clk 0:00:03.3]}
41... Qb2+ {[%clk 0:00:03.4]} 42. Ke3 {[%clk 0:00:03.5]} 42... Qe5+ {[%clk
0:00:04]} 43. Qe4 {[%clk 0:00:03.1]} 43... Qc5+ {[%clk 0:00:04.1]} 44. Qd4+
{[%clk 0:00:03.5]} 44... Kf8 {[%clk 0:00:02.8]} 0-1

[Event "Early-Titled-Tuesday-Blitz-October-24-2023"]
[Site "Chess.com"]
[Date "2023.10.24"]
[Round "6"]
[White "ketster"]
[Black "Treasurechess777"]
[Result "1-0"]
[WhiteElo "2507"]
[BlackElo "2330"]
[TimeControl "180+1"]
[EndTime "9:05:38 PDT"]
[Termination "ketster won by checkmate"]

1. Nf3 {[%clk 0:02:46.9]} 1... Nf6 {[%clk 0:03:00.9]} 2. c4 {[%clk 0:02:46.6]}
2... c5 {[%clk 0:02:59.8]} 3. g3 {[%clk 0:02:46]} 3... b6 {[%clk 0:03:00.1]} 4.
Bg2 {[%clk 0:02:45.9]} 4... Bb7 {[%clk 0:03:01]} 5. O-O {[%clk 0:02:46.6]} 5...
e6 {[%clk 0:02:59.3]} 6. Nc3 {[%clk 0:02:45.6]} 6... a6 {[%clk 0:02:59]} 7. d4
{[%clk 0:02:41.4]} 7... cxd4 {[%clk 0:02:59.5]} 8. Qxd4 {[%clk 0:02:41.2]} 8...
d6 {[%clk 0:02:58.2]} 9. e4 {[%clk 0:02:36]} 9... Nbd7 {[%clk 0:02:57.2]} 10. b4
{[%clk 0:02:14.8]} 10... Qc7 {[%clk 0:02:54]} 11. Bb2 {[%clk 0:02:10]} 11... Rc8
{[%clk 0:02:53.2]} 12. Nd2 {[%clk 0:02:05.3]} 12... Ne5 {[%clk 0:02:46]} 13.
Rac1 {[%clk 0:01:39.4]} 13... Nc6 {[%clk 0:02:34.3]} 14. Qe3 {[%clk 0:01:34.2]}
14... Nxb4 {[%clk 0:02:34.3]} 15. Nd5 {[%clk 0:01:14.9]} 15... exd5 {[%clk
0:02:30.5]} 16. cxd5 {[%clk 0:01:14.2]} 16... Qd7 {[%clk 0:02:24.1]} 17. a3
{[%clk 0:01:05.2]} 17... Rxc1 {[%clk 0:02:05.2]} 18. Rxc1 {[%clk 0:01:03.5]}
18... Na2 {[%clk 0:02:05]} 19. Ra1 {[%clk 0:01:00.9]} 19... Be7 {[%clk
0:02:01.2]} 20. Qxb6 {[%clk 0:00:55.9]} 20... O-O {[%clk 0:01:56.3]} 21. Rxa2
{[%clk 0:00:56.1]} 21... Rc8 {[%clk 0:01:15]} 22. Qb3 {[%clk 0:00:55.5]} 22...
a5 {[%clk 0:01:04.6]} 23. Ra1 {[%clk 0:00:54.2]} 23... Ba6 {[%clk 0:00:58.9]}
24. Qb6 {[%clk 0:00:42.6]} 24... Bd3 {[%clk 0:00:45.5]} 25. Qd4 {[%clk
0:00:33.5]} 25... Ba6 {[%clk 0:00:29]} 26. Rc1 {[%clk 0:00:29.5]} 26... Rb8
{[%clk 0:00:24]} 27. Bc3 {[%clk 0:00:28.2]} 27... Qb5 {[%clk 0:00:22.3]} 28. h4
{[%clk 0:00:23.6]} 28... Bd8 {[%clk 0:00:20.7]} 29. e5 {[%clk 0:00:09.9]} 29...
Bb6 {[%clk 0:00:19]} 30. Qf4 {[%clk 0:00:07.9]} 30... Nh5 {[%clk 0:00:13]} 31.
Qg5 {[%clk 0:00:06.7]} 31... g6 {[%clk 0:00:12.5]} 32. e6 {[%clk 0:00:04.9]}
32... Qd3 {[%clk 0:00:08.9]} 33. Bf1 {[%clk 0:00:04.7]} 33... Qxg3+ {[%clk
0:00:05.5]} 34. Qxg3 {[%clk 0:00:04.4]} 34... Nxg3 {[%clk 0:00:06.4]} 35. Bxa6
{[%clk 0:00:04.7]} 35... fxe6 {[%clk 0:00:05.3]} 36. dxe6 {[%clk 0:00:05.6]}
36... Nf5 {[%clk 0:00:04.2]} 37. Bc4 {[%clk 0:00:04.2]} 37... Kf8 {[%clk
0:00:03.5]} 38. Bd5 {[%clk 0:00:03.9]} 38... Ke7 {[%clk 0:00:03.7]} 39. Ne4
{[%clk 0:00:04.1]} 39... Nxh4 {[%clk 0:00:04.6]} 40. Bf6+ {[%clk 0:00:04.2]}
40... Ke8 {[%clk 0:00:04.4]} 41. Bxh4 {[%clk 0:00:05.1]} 41... Bc5 {[%clk
0:00:04.1]} 42. Nxc5 {[%clk 0:00:04.9]} 42... dxc5 {[%clk 0:00:05]} 43. Rxc5
{[%clk 0:00:05.3]} 43... Rb1+ {[%clk 0:00:05.7]} 44. Kg2 {[%clk 0:00:05.9]}
44... Rb8 {[%clk 0:00:05.6]} 45. Rc7 {[%clk 0:00:06]} 45... h6 {[%clk
0:00:03.5]} 46. Rh7 {[%clk 0:00:06.5]} 46... g5 {[%clk 0:00:04.4]} 47. Bg3
{[%clk 0:00:06.3]} 47... Rd8 {[%clk 0:00:02.8]} 48. Bc6+ {[%clk 0:00:06.9]}
48... Kf8 {[%clk 0:00:02.5]} 49. e7+ {[%clk 0:00:07.8]} 49... Kg8 {[%clk
0:00:02.5]} 50. exd8=Q+ {[%clk 0:00:08.7]} 50... Kxh7 {[%clk 0:00:03.2]} 51.
Qe7+ {[%clk 0:00:09.3]} 51... Kg6 {[%clk 0:00:04.1]} 52. Be4+ {[%clk 0:00:09.6]}
52... Kh5 {[%clk 0:00:05]} 53. Qf7+ {[%clk 0:00:10.1]} 53... Kg4 {[%clk
0:00:05.9]} 54. Qf5+ {[%clk 0:00:10.1]} 54... Kh5 {[%clk 0:00:05.8]} 55. Bf3#
{[%clk 0:00:10.5]} 1-0

[Event "Early-Titled-Tuesday-Blitz-October-24-2023"]
[Site "Chess.com"]
[Date "2023.10.24"]
[Round "6"]
[White "FlemingA"]
[Black "JuniorJumper"]
[Result "0-1"]
[WhiteElo "2447"]
[BlackElo "2620"]
[TimeControl "180+1"]
[EndTime "9:05:39 PDT"]
[Termination "JuniorJumper won by resignation"]

1. e4 {[%clk 0:02:59.4]} 1... e5 {[%clk 0:02:59.7]} 2. Nf3 {[%clk 0:02:47.7]}
2... Nc6 {[%clk 0:02:59.4]} 3. c3 {[%clk 0:02:47.9]} 3... Nf6 {[%clk 0:02:38.4]}
4. d4 {[%clk 0:02:43.6]} 4... exd4 {[%clk 0:02:38.6]} 5. e5 {[%clk 0:02:43]}
5... Nd5 {[%clk 0:02:11.2]} 6. Bc4 {[%clk 0:02:42.4]} 6... Nb6 {[%clk
0:02:05.8]} 7. Bb3 {[%clk 0:02:42.6]} 7... d5 {[%clk 0:02:03.5]} 8. cxd4 {[%clk
0:02:42.1]} 8... Bg4 {[%clk 0:01:47]} 9. Be3 {[%clk 0:02:34]} 9... Nc4 {[%clk
0:01:40.5]} 10. O-O {[%clk 0:02:29.3]} 10... Nxb2 {[%clk 0:01:21.6]} 11. Qc2
{[%clk 0:02:27.8]} 11... Nc4 {[%clk 0:01:16.4]} 12. Bxc4 {[%clk 0:02:24.7]}
12... dxc4 {[%clk 0:01:16.7]} 13. Nbd2 {[%clk 0:02:22.4]} 13... b5 {[%clk
0:01:16.4]} 14. a4 {[%clk 0:02:19.4]} 14... Nb4 {[%clk 0:01:11.4]} 15. Qe4
{[%clk 0:02:15.5]} 15... Bxf3 {[%clk 0:01:04.9]} 16. Nxf3 {[%clk 0:02:12.7]}
16... c6 {[%clk 0:00:55.1]} 17. axb5 {[%clk 0:02:08.4]} 17... cxb5 {[%clk
0:00:56]} 18. Rfb1 {[%clk 0:02:08.3]} 18... a6 {[%clk 0:00:48.9]} 19. Bg5 {[%clk
0:01:16.2]} 19... Qc8 {[%clk 0:00:42.7]} 20. d5 {[%clk 0:01:12.5]} 20... Bc5
{[%clk 0:00:38.3]} 21. Bh4 {[%clk 0:00:48.3]} 21... h6 {[%clk 0:00:35.9]} 22.
Rd1 {[%clk 0:00:16.9]} 22... O-O {[%clk 0:00:35.2]} 23. d6 {[%clk 0:00:12.2]}
23... Nd3 {[%clk 0:00:35.6]} 24. Nd4 {[%clk 0:00:08.4]} 24... Bxd4 {[%clk
0:00:31]} 25. Qxd4 {[%clk 0:00:09.3]} 25... Qc5 {[%clk 0:00:24.8]} 26. Rxd3
{[%clk 0:00:08.3]} 26... Qxd4 {[%clk 0:00:12.7]} 27. Rxd4 {[%clk 0:00:09.2]}
27... g5 {[%clk 0:00:13.2]} 28. Bg3 {[%clk 0:00:08.6]} 28... a5 {[%clk
0:00:13.1]} 29. f4 {[%clk 0:00:08.5]} 29... a4 {[%clk 0:00:13.2]} 30. fxg5
{[%clk 0:00:07.4]} 30... hxg5 {[%clk 0:00:14.1]} 31. h4 {[%clk 0:00:07.9]} 31...
a3 {[%clk 0:00:13.2]} 32. hxg5 {[%clk 0:00:05.6]} 32... Ra7 {[%clk 0:00:09.4]}
33. g6 {[%clk 0:00:04.5]} 33... Rfa8 {[%clk 0:00:07.6]} 34. gxf7+ {[%clk
0:00:04]} 34... Kxf7 {[%clk 0:00:08.5]} 35. Bh4 {[%clk 0:00:04.5]} 35... Ke6
{[%clk 0:00:08.7]} 36. Re1 {[%clk 0:00:05.1]} 36... a2 {[%clk 0:00:08.5]} 37.
Rf4 {[%clk 0:00:05.7]} 37... a1=Q {[%clk 0:00:08.4]} 38. Rf6+ {[%clk 0:00:06.6]}
38... Kd5 {[%clk 0:00:09.1]} 39. Rxa1 {[%clk 0:00:07.5]} 39... Rxa1+ {[%clk
0:00:09]} 40. Kh2 {[%clk 0:00:08.4]} 40... Rh8 {[%clk 0:00:09.7]} 41. g3 {[%clk
0:00:07.9]} 41... c3 {[%clk 0:00:08.1]} 42. d7 {[%clk 0:00:08.4]} 42... c2
{[%clk 0:00:07.8]} 43. Rd6+ {[%clk 0:00:08.8]} 43... Ke4 {[%clk 0:00:08.4]} 44.
d8=Q {[%clk 0:00:04]} 44... Rxd8 {[%clk 0:00:08.8]} 45. Rc6 {[%clk 0:00:03]}
45... Rd2+ {[%clk 0:00:07.6]} 46. Kh3 {[%clk 0:00:02.9]} 46... c1=Q {[%clk
0:00:08.5]} 47. Rxc1 {[%clk 0:00:02.8]} 47... Rxc1 {[%clk 0:00:09.4]} 48. Bg5
{[%clk 0:00:03.7]} 48... Rh1+ {[%clk 0:00:09.1]} 49. Kg4 {[%clk 0:00:04.5]}
49... Rd5 {[%clk 0:00:09.6]} 0-1

[Event "Early-Titled-Tuesday-Blitz-October-24-2023"]
[Site "Chess.com"]
[Date "2023.10.24"]
[Round "6"]
[White "wild3000"]
[Black "vladgoncharov"]
[Result "1-0"]
[WhiteElo "2386"]
[BlackElo "2578"]
[TimeControl "180+1"]
[EndTime "9:05:41 PDT"]
[Termination "wild3000 won by resignation"]

1. e4 {[%clk 0:03:00]} 1... e6 {[%clk 0:02:53.6]} 2. Nf3 {[%clk 0:02:59.6]} 2...
d5 {[%clk 0:02:53.7]} 3. e5 {[%clk 0:03:00]} 3... c5 {[%clk 0:02:52.2]} 4. b4
{[%clk 0:03:00.4]} 4... cxb4 {[%clk 0:02:52.3]} 5. d4 {[%clk 0:03:00.6]} 5...
Nc6 {[%clk 0:02:51.4]} 6. a3 {[%clk 0:03:00.6]} 6... b3 {[%clk 0:02:51.3]} 7.
cxb3 {[%clk 0:02:56.8]} 7... Nge7 {[%clk 0:02:50.8]} 8. Bb2 {[%clk 0:02:54.1]}
8... Nf5 {[%clk 0:02:49.2]} 9. Be2 {[%clk 0:02:50]} 9... Nh4 {[%clk 0:02:33.7]}
10. Nbd2 {[%clk 0:02:41.8]} 10... Nxg2+ {[%clk 0:02:32.1]} 11. Kf1 {[%clk
0:02:41.8]} 11... Nf4 {[%clk 0:02:29.4]} 12. Bb5 {[%clk 0:02:40.4]} 12... Bd7
{[%clk 0:02:28.2]} 13. h4 {[%clk 0:02:37]} 13... a6 {[%clk 0:02:21.5]} 14. Be2
{[%clk 0:02:31.7]} 14... Nxe2 {[%clk 0:02:18.7]} 15. Kxe2 {[%clk 0:02:32.6]}
15... Ne7 {[%clk 0:02:17.8]} 16. a4 {[%clk 0:02:30.3]} 16... Nf5 {[%clk
0:02:14.9]} 17. Rc1 {[%clk 0:02:26]} 17... Bb4 {[%clk 0:02:04.3]} 18. Nf1 {[%clk
0:02:25.5]} 18... O-O {[%clk 0:02:01.1]} 19. Ne3 {[%clk 0:02:20.1]} 19... Nxe3
{[%clk 0:02:00.5]} 20. fxe3 {[%clk 0:02:21]} 20... f6 {[%clk 0:01:53]} 21. Qg1
{[%clk 0:02:09.7]} 21... fxe5 {[%clk 0:01:50.1]} 22. Nxe5 {[%clk 0:02:09.6]}
22... Rc8 {[%clk 0:01:43.3]} 23. Qg4 {[%clk 0:01:50.1]} 23... Rxc1 {[%clk
0:01:30.3]} 24. Rxc1 {[%clk 0:01:49.5]} 24... b5 {[%clk 0:01:29.1]} 25. Rg1
{[%clk 0:01:42.8]} 25... Qe7 {[%clk 0:01:28.4]} 26. a5 {[%clk 0:01:21.6]} 26...
Bxa5 {[%clk 0:01:22.9]} 27. h5 {[%clk 0:01:22.5]} 27... Rc8 {[%clk 0:01:11.2]}
28. h6 {[%clk 0:01:14]} 28... Rc2+ {[%clk 0:00:36.8]} 29. Kd1 {[%clk 0:01:12.1]}
29... Rd2+ {[%clk 0:00:36.2]} 30. Kc1 {[%clk 0:01:10.6]} 30... Be8 {[%clk
0:00:25.8]} 31. Qxg7+ {[%clk 0:01:00]} 31... Qxg7 {[%clk 0:00:25.7]} 32. Rxg7+
{[%clk 0:00:58.8]} 32... Kf8 {[%clk 0:00:20.7]} 33. Ba3+ {[%clk 0:00:43.7]}
33... b4 {[%clk 0:00:20.6]} 34. Kxd2 {[%clk 0:00:43.9]} 34... bxa3+ {[%clk
0:00:21]} 35. Kc2 {[%clk 0:00:44.2]} 35... a2 {[%clk 0:00:21.5]} 36. Kb2 {[%clk
0:00:41.5]} 36... Bd2 {[%clk 0:00:20.4]} 37. Ng4 {[%clk 0:00:32.1]} 37... Bg6
{[%clk 0:00:18.9]} 38. Kxa2 {[%clk 0:00:31.4]} 38... Bf5 {[%clk 0:00:14.5]} 39.
Nf6 {[%clk 0:00:23.9]} 39... Bxe3 {[%clk 0:00:14.1]} 40. Nxh7+ {[%clk
0:00:23.6]} 40... Bxh7 {[%clk 0:00:14.2]} 41. Rxh7 {[%clk 0:00:23.4]} 41... Bxd4
{[%clk 0:00:14.9]} 42. Rb7 {[%clk 0:00:18.8]} 42... Kg8 {[%clk 0:00:15.2]} 43.
h7+ {[%clk 0:00:18.2]} 43... Kh8 {[%clk 0:00:15.5]} 44. b4 {[%clk 0:00:18.7]}
44... e5 {[%clk 0:00:16]} 45. Kb3 {[%clk 0:00:18.6]} 45... e4 {[%clk 0:00:16.5]}
46. Kc2 {[%clk 0:00:18.8]} 46... Bg7 {[%clk 0:00:13.6]} 47. Ra7 {[%clk
0:00:17.4]} 47... d4 {[%clk 0:00:13.9]} 48. Re7 {[%clk 0:00:16.6]} 48... d3+
{[%clk 0:00:13.8]} 49. Kd2 {[%clk 0:00:15.8]} 49... Bh6+ {[%clk 0:00:14.1]} 50.
Kc3 {[%clk 0:00:14.7]} 50... e3 {[%clk 0:00:14.3]} 51. Kxd3 {[%clk 0:00:14.8]}
51... Bg5 {[%clk 0:00:14.3]} 52. Ra7 {[%clk 0:00:14.1]} 52... Bf4 {[%clk
0:00:10.1]} 53. Rxa6 {[%clk 0:00:13.5]} 53... Kxh7 {[%clk 0:00:09.9]} 54. b5
{[%clk 0:00:13.6]} 54... Kg8 {[%clk 0:00:09.6]} 55. b6 {[%clk 0:00:13.2]} 55...
Kf7 {[%clk 0:00:09.8]} 56. b7 {[%clk 0:00:13.3]} 56... Ke7 {[%clk 0:00:10.1]}
57. Ra8 {[%clk 0:00:13.2]} 1-0

[Event "Early-Titled-Tuesday-Blitz-October-24-2023"]
[Site "Chess.com"]
[Date "2023.10.24"]
[Round "6"]
[White "Mariia89"]
[Black "marik_spb"]
[Result "1-0"]
[WhiteElo "2159"]
[BlackElo "2413"]
[TimeControl "180+1"]
[EndTime "9:05:41 PDT"]
[Termination "Mariia89 won on time"]

1. d4 {[%clk 0:02:59.3]} 1... Nf6 {[%clk 0:02:50.6]} 2. Nf3 {[%clk 0:02:59.5]}
2... e6 {[%clk 0:02:50.6]} 3. Bg5 {[%clk 0:02:59.2]} 3... d5 {[%clk 0:02:50]} 4.
e3 {[%clk 0:02:59.5]} 4... b6 {[%clk 0:02:48.2]} 5. Bd3 {[%clk 0:02:59.2]} 5...
a5 {[%clk 0:02:47.7]} 6. c3 {[%clk 0:02:57.3]} 6... Ba6 {[%clk 0:02:47.8]} 7.
Ne5 {[%clk 0:02:55.2]} 7... Bxd3 {[%clk 0:02:41.3]} 8. Qxd3 {[%clk 0:02:55.4]}
8... Be7 {[%clk 0:02:41.4]} 9. Nd2 {[%clk 0:02:55.3]} 9... Nfd7 {[%clk
0:02:35.1]} 10. Bf4 {[%clk 0:02:53]} 10... Nxe5 {[%clk 0:02:11.9]} 11. Bxe5
{[%clk 0:02:42.3]} 11... O-O {[%clk 0:02:11.7]} 12. Nf3 {[%clk 0:02:40.8]} 12...
Nd7 {[%clk 0:02:11.5]} 13. Bg3 {[%clk 0:02:39.8]} 13... c5 {[%clk 0:02:08.5]}
14. O-O {[%clk 0:02:38.7]} 14... c4 {[%clk 0:01:52.7]} 15. Qc2 {[%clk
0:02:35.8]} 15... f5 {[%clk 0:01:48.9]} 16. Ne5 {[%clk 0:02:32.2]} 16... Nxe5
{[%clk 0:01:49]} 17. Bxe5 {[%clk 0:02:28.9]} 17... Bd6 {[%clk 0:01:49.5]} 18.
Rad1 {[%clk 0:02:24.6]} 18... b5 {[%clk 0:01:47.4]} 19. f3 {[%clk 0:02:20.6]}
19... Bxe5 {[%clk 0:01:42.7]} 20. dxe5 {[%clk 0:02:20.5]} 20... Qb6 {[%clk
0:01:43.6]} 21. Qd2 {[%clk 0:02:18.9]} 21... b4 {[%clk 0:01:43]} 22. Qd4 {[%clk
0:02:19.1]} 22... Rab8 {[%clk 0:01:38.4]} 23. e4 {[%clk 0:02:15.1]} 23... fxe4
{[%clk 0:01:08.4]} 24. Qxb6 {[%clk 0:01:54.3]} 24... Rxb6 {[%clk 0:01:07.4]} 25.
fxe4 {[%clk 0:01:54.8]} 25... dxe4 {[%clk 0:00:58.3]} 26. Rd4 {[%clk 0:01:45.5]}
26... bxc3 {[%clk 0:00:31.8]} 27. bxc3 {[%clk 0:01:44.1]} 27... e3 {[%clk
0:00:32]} 28. Rxc4 {[%clk 0:01:05.1]} 28... Rb2 {[%clk 0:00:31.2]} 29. Re1
{[%clk 0:01:03]} 29... Rff2 {[%clk 0:00:30.3]} 30. Rg4 {[%clk 0:01:02.2]} 30...
Rfc2 {[%clk 0:00:27.6]} 31. c4 {[%clk 0:00:56]} 31... Rxa2 {[%clk 0:00:27.1]}
32. h4 {[%clk 0:00:51.9]} 32... Re2 {[%clk 0:00:22.7]} 33. Rxe2 {[%clk
0:00:29.6]} 33... Rxe2 {[%clk 0:00:23.6]} 34. Kf1 {[%clk 0:00:29.2]} 34... Rf2+
{[%clk 0:00:21.5]} 35. Ke1 {[%clk 0:00:29]} 35... Rc2 {[%clk 0:00:22.4]} 36. Rf4
{[%clk 0:00:29.2]} 36... Rxg2 {[%clk 0:00:20.9]} 37. Re4 {[%clk 0:00:29.2]}
37... Kf7 {[%clk 0:00:14.4]} 38. Rxe3 {[%clk 0:00:21.9]} 38... Rg4 {[%clk
0:00:13.7]} 39. Rc3 {[%clk 0:00:21.8]} 39... Rxh4 {[%clk 0:00:12]} 40. c5 {[%clk
0:00:21.9]} 40... Ke8 {[%clk 0:00:11.9]} 41. c6 {[%clk 0:00:21.5]} 41... Kd8
{[%clk 0:00:12.5]} 42. Rc5 {[%clk 0:00:21.9]} 42... Kc7 {[%clk 0:00:11.4]} 43.
Rxa5 {[%clk 0:00:20]} 43... Kxc6 {[%clk 0:00:11.8]} 44. Kf2 {[%clk 0:00:18.6]}
44... Rd4 {[%clk 0:00:07.6]} 45. Ra7 {[%clk 0:00:14.2]} 1-0